bitfinex/quotes_ETHUSD_20250611
["timestamp","ask_amount","ask_price","bid_price","bid_amount"]
[1749644575641,4.175,2763.5,2762.9,0.0378]
[1749644576145,4.175,2763.5,2763.4,0.1808]
[1749644576352,4.7,2763.5,2762.9,0.0378]
[1749644576550,8.864,2763.5,2763.4,0.1808]
[1749644576845,10.22868894,2763.5,2763.4,0.1808]
[1749644577046,6.06468894,2763.5,2763.4,0.1808]
[1749644577263,5.56468894,2763.5,2763.4,0.1808]
[1749644577441,4.7,2763.5,2763.4,0.1808]
[1749644577620,0.5,2763.7,2763.4,0.1808]
[1749644577825,4.162,2763.6,2763.5,0.0378]
[1749644578135,0.5,2763.7,2763.6,0.1808]
[1749644578349,1.36467012,2763.7,2763.6,0.1808]
[1749644578564,5.52366563,2763.7,2763.6,0.1808]
[1749644578860,1.36466563,2763.7,2763.6,0.1808]
[1749644579065,5.52166563,2763.7,2763.6,0.1808]
[1749644579245,9.14000336,2763.7,2763.6,0.1808]
[1749644579449,18.81587852,2763.7,2763.2,0.0378]
[1749644579764,4.48315461,2763.6,2763.5,0.1808]
[1749644580137,3.61888776,2763.3,2762.8,0.0378]
[1749644580344,4.153,2763.2,2763.1,0.1808]
[1749644580899,0.79739767,2763.6,2763.2,0.55]
[1749644581069,5.01914082,2763.5,2763.2,0.55]
[1749644581238,0.79739767,2763.6,2763.5,0.1808]
[1749644581435,1.66252142,2763.6,2763.5,0.1808]
[1749644581638,4.44939767,2763.6,2763.5,0.7308]
[1749644581964,0.29739767,2763.6,2763.5,0.7308]
[1749644582179,4.44839767,2763.6,2763.5,0.7308]
[1749644582379,0.29739767,2763.6,2763.5,0.73903671]
[1749644582581,4.44639767,2763.6,2763.5,0.73903671]
[1749644583077,0.29739767,2763.6,2763.5,0.73903671]
[1749644583282,8.06186633,2763.6,2763.5,0.18903671]
[1749644583583,8.92707387,2763.6,2763.5,0.00823671]
[1749644583880,1.16260521,2763.6,2763.5,0.00823671]
[1749644584084,0.29739767,2763.6,2763.5,0.59603671]
[1749644584257,4.44239767,2763.6,2763.5,0.77683671]
[1749644585342,0.29739767,2763.6,2763.5,0.00823671]
[1749644585581,4.43939767,2763.6,2763.5,0.00823671]
[1749644586157,8.05786633,2763.6,2763.5,0.00823671]
[1749644586355,4.43939767,2763.6,2763.5,0.00823671]
[1749644587084,8.05786633,2763.6,2763.5,0.00823671]
[1749644587452,8.92370429,2763.6,2763.5,0.00823671]
[1749644587651,1.16323563,2763.6,2763.5,0.00823671]
[1749644587854,1.16323563,2763.6,2763.5,0.55823671]
[1749644587855,0.29739767,2763.6,2763.5,0.55823671]
[1749644588049,4.43439767,2763.6,2763.5,0.55823671]
[1749644588788,0.29739767,2763.6,2763.5,0.55823671]
[1749644589194,0.04,2763.9,2763.5,0.04603671]
[1749644589364,0.04,2764.9,2763.9,10.55]
[1749644589564,0.04,2764.9,2764.2,0.0378]
[1749644589880,0.04,2764.9,2764.3,0.55]
[1749644590050,0.04,2764.9,2764.4,0.0378]
[1749644590253,0.04,2764.9,2764.7,0.55]
[1749644590791,0.04,2764.9,2764.4,0.55]
[1749644591172,0.04,2764.9,2764.8,0.00453546]
[1749644591575,4.168,2764.9,2764.8,0.00453546]
[1749644591884,0.04,2764.9,2764.8,0.59233546]
[1749644593086,0.04,2764.9,2764.8,0.55453546]
[1749644594681,0.04,2764.9,2764.8,0.00453546]
[1749644594864,0.54,2764.9,2764.8,0.00453546]
[1749644595399,0.54,2764.9,2764.8,0.18533546]
[1749644595951,0.54,2764.9,2764.8,0.73533546]
[1749644597356,0.54,2764.9,2764.8,0.18533546]
[1749644597680,4.15,2764.9,2764.8,0.18533546]
[1749644598659,0.04,2764.9,2764.8,0.22313546]
[1749644600386,0.04,2764.9,2764.8,0.77313546]
[1749644606594,0.04,2764.9,2764.8,0.73533546]
[1749644608814,0.04,2764.9,2764.8,0.77313546]
[1749644609389,0.04,2764.9,2764.8,0.18533546]
[1749644610422,0.04,2764.9,2764.8,0.77313546]
[1749644611422,0.04,2764.9,2764.8,10.93483261]
[1749644611593,0.04,2764.9,2764.8,12.99479747]
[1749644611797,4.22696977,2765.9,2765.1,0.55]
[1749644612122,4.22696977,2765.9,2765.1,10.55]
[1749644612326,4.22696977,2765.9,2765.8,0.73]
[1749644612893,4.22696977,2765.9,2765.8,0.758991]
[1749644613931,4.22696977,2765.9,2765.8,0.208991]
[1749644617336,4.22696977,2765.9,2765.8,0.246791]
[1749644619003,4.22696977,2765.9,2765.8,0.208991]
[1749644619304,5.00176977,2765.9,2765.8,0.208991]
[1749644619502,5.50176977,2765.9,2765.8,0.208991]
[1749644619709,4.9302597,2765.9,2765.8,0.028991]
[1749644620228,5.3688,2765.9,2765.8,0.028991]
[1749644620431,0.04,2765.9,2765.8,0.758991]
[1749644622023,0.54,2765.9,2765.8,0.208991]
[1749644622246,14.61617569,2765.9,2765.8,0.028991]
[1749644622835,14.79617569,2765.9,2765.8,0.028991]
[1749644623035,4.9513597,2765.9,2765.8,0.028991]
[1749644623236,9.0043597,2765.9,2765.8,0.028991]
[1749644623439,4.9513597,2765.9,2765.8,0.028991]
[1749644623751,9.0023597,2765.9,2765.8,0.028991]
[1749644624466,9.1823597,2765.9,2765.8,0.028991]
[1749644625557,11.23810383,2765.9,2765.8,0.028991]
[1749644625739,10.3743597,2765.9,2765.8,0.028991]
[1749644625935,5.99510348,2765.9,2765.8,0.028991]
[1749644626140,10.3733597,2765.9,2765.8,0.028991]
[1749644626835,5.99527977,2765.9,2765.8,0.028991]
[1749644627019,5.1313597,2765.9,2765.8,0.028991]
[1749644627220,8.9933597,2765.9,2765.8,0.028991]
[1749644627458,13.18032947,2765.9,2765.8,0.028991]
[1749644629149,13.17632947,2765.9,2765.8,0.028991]
[1749644630671,9.13832947,2765.9,2765.8,0.028991]
[1749644630868,13.17032947,2765.9,2765.8,0.028991]
[1749644631488,13.5078809,2765.9,2765.8,0.028991]
[1749644631631,14.52050578,2765.9,2765.8,0.028991]
[1749644631835,14.85804312,2765.9,2765.8,0.028991]
[1749644632034,15.19557766,2765.9,2765.8,0.028991]
[1749644632578,14.85804312,2765.9,2765.8,0.028991]
[1749644632879,15.18956929,2765.9,2765.8,0.028991]
[1749644633079,11.23558342,2765.9,2765.8,0.028991]
[1749644633229,10.43968342,2765.9,2765.8,0.208991]
[1749644633432,14.05514312,2765.9,2765.8,0.208991]
[1749644633764,10.43868342,2765.9,2765.8,0.208991]
[1749644634075,5.91468342,2765.9,2765.8,0.208991]
[1749644634377,14.38956897,2765.9,2765.8,0.208991]
[1749644634543,14.38956897,2765.9,2765.8,0.028991]
[1749644634544,14.38958971,2765.9,2765.8,0.028991]
[1749644634746,14.05214312,2765.9,2765.8,0.028991]
[1749644634951,14.38960512,2765.9,2765.8,0.028991]
[1749644635484,15.18771265,2765.9,2765.8,0.028991]
[1749644636001,16.05222276,2765.9,2765.8,0.028991]
[1749644636183,16.05222202,2765.9,2765.8,0.028991]
[1749644636343,15.71470272,2765.9,2765.8,0.028991]
[1749644636548,16.05223004,2765.9,2765.8,0.028991]
[1749644636781,4.94237494,2765.2,2765.1,0.1808]
[1749644636949,13.14834471,2765.2,2765.1,0.1808]
[1749644637130,13.48587032,2765.2,2765.1,0.1808]
[1749644637330,13.14834471,2765.2,2765.1,0.1808]
[1749644638282,8.96137494,2765.2,2765.1,0.1808]
[1749644638866,3.61677718,2764.9,2764.4,0.6168]
[1749644639067,7.63293946,2764.8,2764.4,0.0668]
[1749644639261,3.61681194,2764.9,2764.7,0.1808]
[1749644639450,4.015,2764.8,2764.7,0.1808]
[1749644639877,7.63189814,2764.8,2764.7,0.1808]
[1749644640250,4.515,2764.8,2764.7,0.1808]
[1749644640789,8.13189814,2764.8,2764.7,0.1808]
[1749644641403,8.12489814,2764.8,2764.7,0.1808]
[1749644641588,8.12489814,2764.8,2764.1,0.0668]
[1749644641589,0.5,2764.4,2763.8,0.0668]
[1749644641773,3.61721144,2764.6,2764.4,0.0668]
[1749644641774,0.5,2764.6,2764.4,0.0668]
[1749644641961,0.5,2764.9,2764.5,0.1808]
[1749644642297,4.008,2764.8,2764.6,0.00403039]
[1749644642689,0.5,2765.1,2764.7,0.1808]
[1749644643005,4.007,2765.0,2764.5,0.55]
[1749644643210,4.007,2765.0,2764.8,0.0040301]
[1749644643364,4.007,2765.0,2764.9,0.1808]
[1749644644104,4.007,2765.0,2764.9,0.18482996]
[1749644644770,0.5,2765.1,2764.9,0.18482996]
[1749644645010,4.001,2765.0,2764.9,0.18482996]
[1749644645183,8.18796977,2765.0,2764.9,0.18482996]
[1749644645519,8.18696977,2765.0,2764.9,0.18482996]
[1749644645673,0.5,2765.1,2764.9,0.18482996]
[1749644645874,3.998,2765.0,2764.9,0.18482996]
[1749644647590,3.994,2765.0,2764.9,0.18482996]
[1749644647809,3.994,2765.0,2764.9,0.25162996]
[1749644647983,0.5,2765.1,2764.9,0.25162996]
[1749644648184,3.993,2765.0,2764.9,0.25162996]
[1749644649283,3.99,2765.0,2764.9,0.25162996]
[1749644649509,0.5,2765.1,2764.9,0.25162996]
[1749644649914,3.989,2765.0,2764.9,0.18482996]
[1749644650117,7.60463652,2765.0,2764.9,0.18482996]
[1749644650517,7.60463652,2765.0,2764.9,0.00402996]
[1749644650718,7.9423454,2765.0,2764.9,0.00402996]
[1749644650875,7.60463652,2765.0,2764.9,0.00402996]
[1749644651096,4.325701,2765.0,2764.9,0.00402996]
[1749644652040,7.94233752,2765.0,2764.9,0.00402996]
[1749644652409,4.325701,2765.0,2764.9,0.00402996]
[1749644652717,0.33809367,2765.0,2764.9,0.00402996]
[1749644652908,3.981,2765.0,2764.9,0.18482996]
[1749644653733,0.5,2765.1,2764.9,0.18482996]
[1749644653909,3.979,2765.0,2764.9,0.18482996]
[1749644654110,8.16596977,2765.0,2764.9,0.18482996]
[1749644655948,4.18696977,2765.0,2764.9,0.18482996]
[1749644656168,8.15896977,2765.0,2764.9,0.18482996]
[1749644656665,8.15796977,2765.0,2764.9,0.18482996]
[1749644658780,12.11281872,2765.0,2764.9,0.18482996]
[1749644658947,13.06241872,2765.0,2764.9,0.00402996]
[1749644659896,13.06253657,2765.0,2764.9,0.00402996]
[1749644660250,13.06253831,2765.0,2764.9,0.00402996]
[1749644660440,13.062537,2765.0,2764.9,0.00402996]
[1749644660778,13.06242982,2765.0,2764.9,0.00402996]
[1749644661673,13.06262623,2765.0,2764.9,0.00402996]
[1749644661989,8.75320629,2765.0,2764.9,0.00402996]
[1749644662182,14.21862357,2765.0,2764.9,0.00402996]
[1749644662385,5.47498705,2765.0,2764.9,0.00402996]
[1749644662589,4.18696977,2765.0,2764.9,0.18482996]
[1749644663285,8.15896977,2765.0,2764.9,0.18482996]
[1749644665490,4.18696977,2765.0,2764.9,0.18482996]
[1749644665812,8.597,2765.6,2765.0,10.6168]
[1749644665813,3.971,2765.5,2765.0,10.6168]
[1749644666116,3.971,2765.5,2765.4,0.18]
[1749644666625,0.5,2765.6,2765.4,0.18]
[1749644666819,3.971,2765.5,2765.4,0.2089855]
[1749644669314,3.971,2765.6,2765.5,0.0668]
[1749644669520,0.5,2765.8,2765.5,0.0668]
[1749644669726,3.971,2765.7,2765.5,0.0957855]
[1749644670087,3.971,2765.7,2765.6,0.18]
[1749644670716,3.971,2765.7,2765.6,0.2089855]
[1749644671119,0.5,2765.8,2765.6,0.2089855]
[1749644671322,3.971,2765.7,2765.6,0.2089855]
[1749644672728,0.5,2765.8,2765.6,0.2089855]
[1749644672889,3.97,2765.8,2765.7,0.0668]
[1749644673288,3.97,2765.8,2765.7,0.0957855]
[1749644673525,1.72771365,2765.9,2765.7,0.0957855]
[1749644674014,1.72771365,2765.9,2765.8,0.18]
[1749644674215,1.72771365,2765.9,2765.8,0.73]
[1749644674406,1.72771365,2765.9,2765.8,0.7589855]
[1749644674788,1.72771365,2765.9,2765.8,10.49060149]
[1749644675007,0.54,2766.9,2766.1,0.55]
[1749644675322,0.54,2766.9,2766.2,0.0668]
[1749644675501,0.54,2766.9,2766.2,0.44892862]
[1749644675823,0.54,2766.9,2766.2,0.0957855]
[1749644676027,10.20481599,2766.9,2766.3,0.55]
[1749644676415,10.20481599,2766.9,2766.1,0.55]
[1749644676416,0.5,2766.2,2766.1,0.55]
[1749644676600,0.5,2766.2,2766.0,0.0668]
[1749644676992,0.5,2766.0,2765.6,0.0668]
[1749644677337,10.16481599,2766.0,2764.7,1.124]
[1749644677638,10.16481599,2766.0,2764.6,10.0]
[1749644677639,10.16481599,2766.0,2764.8,1.1792]
[1749644677802,10.16481599,2766.0,2764.8,0.0668]
[1749644678334,0.5,2765.7,2764.8,0.0668]
[1749644678544,3.97,2765.6,2764.8,0.0668]
[1749644679200,0.5,2765.5,2764.8,0.0668]
[1749644679604,3.969,2765.4,2764.8,0.0668]
[1749644680006,13.63381599,2765.4,2764.8,0.0668]
[1749644680593,13.63381599,2765.4,2764.6,0.12355591]
[1749644680594,0.8328,2765.3,2764.6,0.12355591]
[1749644680829,0.5,2765.2,2764.6,0.12355591]
[1749644681433,0.5,2765.0,2764.6,0.12355591]
[1749644682409,0.5,2765.2,2764.7,0.55]
[1749644682617,0.5,2765.0,2764.7,0.55]
[1749644683009,0.5,2765.0,2764.6,0.12355591]
[1749644684344,4.469,2765.3,2764.7,0.55]
[1749644684845,4.469,2765.3,2765.2,0.1808]
[1749644685705,8.08524416,2765.3,2765.2,0.1808]
[1749644686326,0.5,2765.8,2765.2,0.2476]
[1749644686906,0.5,2765.4,2765.2,0.1808]
[1749644687317,0.5,2765.2,2764.7,0.0668]
[1749644688542,0.5,2765.2,2764.8,0.55]
[1749644691027,0.5,2765.5,2764.8,0.55]
[1749644691855,0.5,2765.3,2764.8,0.55]
[1749644692621,0.5,2765.6,2764.9,0.0668]
[1749644692820,0.5,2766.0,2765.2,10.6168]
[1749644693132,0.5,2766.0,2765.5,0.55]
[1749644696051,0.5,2766.0,2765.4,0.0668]
[1749644696253,0.5,2765.7,2765.1,0.55]
[1749644696684,0.5,2765.7,2765.6,0.18]
[1749644696995,10.16481599,2765.7,2765.6,0.18]
[1749644697975,0.5,2765.7,2765.6,0.18]
[1749644700246,10.16481599,2765.7,2765.6,0.18]
[1749644700448,0.5,2765.7,2765.6,0.18]
[1749644701289,4.468,2765.7,2765.6,0.18]
[1749644701499,14.13281599,2765.7,2765.6,0.18]
[1749644702093,0.5,2765.4,2764.8,0.0668]
[1749644702469,0.5,2765.4,2765.3,0.1808]
[1749644702675,4.18696977,2765.6,2765.3,0.1808]
[1749644702871,0.5,2765.9,2765.2,10.55]
[1749644703096,0.5,2765.9,2765.4,10.55]
[1749644703283,4.749,2766.3,2765.4,0.55]
[1749644703489,0.5,2766.2,2765.6,0.55]
[1749644703683,0.5,2766.0,2765.6,0.55]
[1749644704701,0.5,2766.2,2765.6,0.55]
[1749644705375,0.5,2766.0,2765.6,0.55]
[1749644705694,0.5,2766.2,2765.6,0.55]
[1749644705896,0.5,2766.5,2765.8,9.66481599]
[1749644706096,0.5,2766.5,2766.0,0.55]
[1749644706300,0.5,2766.5,2765.8,0.0668]
[1749644708496,0.5,2766.4,2765.8,0.0668]
[1749644708919,0.5,2766.8,2765.8,0.0668]
[1749644709606,0.5,2766.6,2765.8,0.0668]
[1749644709800,0.5,2766.8,2765.9,10.6168]
[1749644710108,0.5,2766.8,2766.4,0.55]
[1749644710327,0.04,2766.9,2766.4,0.55]
[1749644710501,1.2693,2766.8,2766.1,10.0668]
[1749644710684,0.5,2766.6,2766.2,1.20949616]
[1749644710884,0.5,2766.6,2766.2,0.55]
[1749644711088,0.5,2766.6,2765.9,0.6168]
[1749644711287,0.5,2766.6,2765.9,0.98120435]
[1749644711923,0.5,2766.2,2765.6,0.0668]
[1749644712127,0.5,2766.4,2765.6,0.0668]
[1749644712302,0.5,2766.2,2765.6,0.0668]
[1749644712705,0.5,2766.2,2765.7,0.55]
[1749644712933,0.5,2766.2,2766.1,0.18]
[1749644717608,1.3177,2766.2,2766.1,0.18]
[1749644718498,0.5,2766.2,2766.1,0.18]
[1749644720410,0.5,2766.0,2765.4,0.0668]
[1749644722413,0.5,2766.0,2765.6,0.55]
[1749644722617,0.5,2766.2,2765.6,0.55]
[1749644728704,0.5,2766.4,2765.6,0.55]
[1749644728906,0.5,2766.7,2766.0,0.55]
[1749644729051,0.5,2766.7,2766.2,0.55]
[1749644729259,0.5,2766.7,2766.3,1.055]
[1749644729555,0.5,2766.5,2766.3,1.055]
[1749644729750,0.5,2766.5,2766.1,0.55]
[1749644730192,0.5,2766.7,2766.2,0.0668]
[1749644730688,0.5,2766.5,2766.2,0.0668]
[1749644731055,0.5,2766.5,2766.4,0.73]
[1749644731457,1.3068,2766.5,2766.4,0.18]
[1749644741345,1.3068,2766.5,2766.4,0.73]
[1749644743416,0.5,2765.6,2765.5,0.11286295]
[1749644743602,0.5,2765.6,2765.5,0.29286295]
[1749644743921,0.5,2765.6,2765.5,0.18]
[1749644744325,0.5,2765.6,2765.5,0.73]
[1749644744537,0.5,2765.6,2765.5,0.18]
[1749644745885,10.97601599,2765.6,2765.5,0.18]
[1749644746087,0.5,2765.6,2765.5,0.18]
[1749644746505,0.5,2765.6,2765.5,0.73]
[1749644748274,4.18696977,2765.7,2765.6,0.55]
[1749644748825,4.18696977,2765.7,2765.5,0.18]
[1749644748975,0.5,2765.6,2765.5,0.18]
[1749644751436,3.61462867,2766.6,2765.8,0.55]
[1749644751437,0.5,2766.0,2765.8,0.55]
[1749644752795,0.5,2765.9,2765.8,0.55]
[1749644753474,0.5,2766.1,2765.8,0.55]
[1749644753674,0.5,2765.9,2765.8,0.55]
[1749644755216,0.5,2765.9,2765.5,0.0668]
[1749644755421,0.5,2765.9,2765.6,0.55]
[1749644755628,0.5,2765.1,2764.6,0.10868728]
[1749644755797,0.5,2765.1,2764.7,0.0668]
[1749644755998,0.5,2765.4,2764.7,10.0668]
[1749644756337,0.5,2765.4,2764.8,0.55]
[1749644756627,0.5,2765.5,2765.0,0.55]
[1749644759768,0.5,2765.7,2765.0,0.55]
[1749644759908,0.5,2765.7,2765.2,0.55]
[1749644761522,0.5,2765.7,2765.6,0.73]
[1749644761915,0.8282,2766.2,2765.7,0.55]
[1749644761916,0.5,2765.9,2765.7,0.55]
[1749644762548,0.5,2765.9,2765.2,0.55]
[1749644762735,0.5,2765.9,2765.8,0.18]
[1749644762912,0.83772199,2765.9,2765.8,0.18]
[1749644764250,0.83779519,2765.9,2765.8,0.18]
[1749644764545,0.5,2765.9,2765.8,0.18]
[1749644764723,0.83778079,2765.9,2765.8,0.18]
[1749644765335,0.8282,2766.2,2765.8,0.18]
[1749644765336,0.5,2766.1,2765.8,0.73]
[1749644765536,0.5,2766.1,2765.8,0.55]
[1749644765731,0.5,2766.1,2766.0,0.18]
[1749644765917,0.83781994,2766.1,2766.0,0.18]
[1749644766961,0.83782898,2766.1,2766.0,0.18]
[1749644767147,0.83784567,2766.1,2766.0,0.18]
[1749644767536,0.5,2766.1,2766.0,0.18]
[1749644767732,0.83784942,2766.1,2766.0,0.18]
[1749644768759,0.83784835,2766.1,2766.0,0.18]
[1749644768963,0.83785816,2766.1,2766.0,0.18]
[1749644769148,0.5,2766.1,2766.0,0.18]
[1749644769353,0.83785715,2766.1,2766.0,0.18]
[1749644769760,0.8378529,2766.1,2766.0,0.18]
[1749644770259,0.5,2766.1,2766.0,0.18]
[1749644771225,1.2831,2766.5,2766.1,10.55]
[1749644771425,1.2831,2766.5,2766.2,12.0394816]
[1749644771426,0.5,2766.5,2766.2,12.0394816]
[1749644771650,0.5,2766.5,2766.4,0.18]
[1749644771834,1.58818652,2766.5,2766.4,0.18]
[1749644772048,0.5,2765.6,2764.9,0.2468]
[1749644772253,0.7504,2765.5,2764.9,0.2468]
[1749644772635,0.7504,2765.5,2765.4,0.18]
[1749644772852,1.08829877,2765.5,2765.4,0.18]
[1749644773022,1.08832404,2765.5,2765.4,0.18]
[1749644773229,1.08816615,2765.5,2765.4,0.18]
[1749644773428,1.08816554,2765.5,2765.4,0.18]
[1749644773823,4.70414818,2765.5,2765.4,0.18]
[1749644774056,1.08816554,2765.5,2765.4,0.18]
[1749644774262,1.08819666,2765.5,2765.4,0.18]
[1749644774424,0.7504,2765.5,2765.4,0.18]
[1749644775333,4.7084,2765.5,2765.4,0.18]
[1749644775661,0.7504,2765.5,2765.4,0.18]
[1749644776274,1.08826131,2765.5,2765.4,0.18]
[1749644776433,1.08826119,2765.5,2765.4,0.18]
[1749644776635,1.08826651,2765.5,2765.4,0.18]
[1749644776955,0.7504,2765.5,2765.4,0.18]
[1749644777159,1.08827668,2765.5,2765.4,0.18]
[1749644777335,1.08826553,2765.5,2765.4,0.18]
[1749644777866,1.08807602,2765.5,2765.4,0.18]
[1749644778074,1.3153,2764.7,2764.6,0.10868728]
[1749644778254,5.2733,2764.7,2764.6,0.10868728]
[1749644779575,8.89032897,2764.7,2764.6,0.10868728]
[1749644779772,5.2733,2764.7,2764.6,0.10868728]
[1749644779980,1.3153,2764.7,2764.6,0.10868728]
[1749644781333,0.5,2764.7,2764.6,0.10868728]
[1749644781678,0.5,2764.8,2764.6,0.10868728]
[1749644781847,4.7521,2765.3,2764.7,1.01086873]
[1749644782171,0.5,2764.9,2764.7,1.01086873]
[1749644783080,0.5,2764.9,2764.6,0.10868728]
[1749644784280,0.5,2764.7,2764.6,0.10868728]
[1749644787391,0.5,2764.9,2764.6,0.10868728]
[1749644787592,0.5,2765.1,2764.8,10.0]
[1749644787998,0.5,2765.1,2765.0,0.1808]
[1749644788678,0.5,2765.3,2765.0,0.4276]
[1749644789015,0.5,2765.3,2765.1,1.04276]
[1749644789294,0.5,2765.5,2765.2,0.1808]
[1749644789449,0.5,2765.3,2765.1,1.04276]
[1749644789649,0.5,2765.3,2765.2,0.1808]
[1749644792415,1.327,2765.3,2765.2,0.1808]
[1749644793630,0.5,2765.3,2765.2,0.1808]
[1749644796043,0.5,2765.5,2765.2,0.1808]
[1749644796244,0.5,2765.5,2765.3,1.04276]
[1749644796450,0.5,2765.9,2765.4,0.18]
[1749644796792,1.2933,2766.1,2765.5,0.7968]
[1749644796914,0.5,2766.1,2765.6,1.09768]
[1749644797113,0.5,2766.1,2766.0,0.18]
[1749644799152,4.68696977,2766.3,2766.0,0.18]
[1749644799353,4.68696977,2766.3,2765.8,0.55]
[1749644799516,0.5,2766.3,2766.2,0.18]
[1749644801918,0.5,2766.4,2766.2,0.18]
[1749644802711,0.5,2766.6,2766.2,0.18]
[1749644802961,0.5,2766.6,2766.5,0.18]
[1749644808468,1.2991,2766.6,2766.5,0.18]
[1749644810443,0.5,2766.0,2765.2,0.2468]
[1749644810658,0.5,2766.0,2765.3,0.2468]
[1749644810871,0.5,2766.2,2765.9,0.18]
[1749644811369,0.5,2766.2,2766.1,0.18]
[1749644813593,0.5,2766.5,2766.1,0.18]
[1749644813729,0.5,2766.3,2766.2,1.018]
[1749644813929,0.5,2766.3,2766.0,0.3618]
[1749644814177,0.5,2766.3,2766.2,0.18]
[1749644817518,1.2627,2766.3,2766.2,0.18]
[1749644818166,0.5,2766.3,2766.2,0.18]
[1749644819209,0.5,2766.3,2766.1,0.2468]
[1749644819682,0.5,2766.3,2765.8,0.2468]
[1749644820581,0.5,2766.5,2765.9,1.02468]
[1749644822308,0.5,2766.5,2766.0,0.00847531]
[1749644822710,0.54,2766.9,2766.2,10.21481599]
[1749644822891,0.04,2766.9,2766.8,0.55]
[1749644823098,0.04,2766.9,2766.7,10.2468]
[1749644823296,0.04,2766.9,2766.8,12.5411616]
[1749644823541,0.04,2766.9,2766.8,12.7879616]
[1749644823758,0.04,2766.9,2766.8,13.90843446]
[1749644823900,0.04,2766.9,2766.8,14.3595551]
[1749644825150,0.04,2766.9,2766.8,13.2475551]
[1749644825459,0.04,2766.9,2766.8,12.4507551]
[1749644825758,0.04,2766.9,2766.8,0.4595935]
[1749644826525,0.04,2766.9,2766.8,0.7063935]
[1749644826844,0.04,2766.9,2766.8,1.2563935]
[1749644827056,0.04,2766.9,2766.8,0.7063935]
[1749644827217,0.54,2766.9,2766.8,0.00847286]
[1749644828163,0.04,2766.9,2766.8,0.00847286]
[1749644828357,0.04,2766.9,2766.8,20.93381614]
[1749644828562,0.04,2766.9,2766.8,11.26900015]
[1749644830164,0.04,2766.9,2766.8,10.18847286]
[1749644834136,0.54,2766.9,2766.8,10.43527286]
[1749644834343,0.04,2766.9,2766.8,10.43527286]
[1749644834924,0.04,2766.9,2766.8,10.98527286]
[1749644837174,0.04,2766.9,2766.8,10.43527286]
[1749644837472,0.04,2766.9,2766.8,11.23200015]
[1749644840448,0.04,2766.9,2766.8,10.18847286]
[1749644840847,0.04,2766.9,2766.8,0.18847286]
[1749644843568,4.22696977,2766.9,2766.8,0.18847286]
[1749644848964,5.01246977,2766.9,2766.8,0.00847286]
[1749644849677,4.22696977,2766.9,2766.8,0.00847286]
[1749644855333,0.04,2766.9,2766.8,0.00847286]
[1749644855708,0.04,2766.9,2766.8,0.80527286]
[1749644859053,0.04,2766.9,2766.8,13.03228174]
[1749644861733,0.04,2766.9,2766.8,16.97128174]
[1749644866725,0.04,2766.9,2766.8,26.63609773]
[1749644870448,0.54,2767.9,2767.0,0.2468]
[1749644870649,0.54,2767.9,2767.3,10.21481599]
[1749644870855,0.5,2767.7,2767.5,0.55]
[1749644871214,0.5,2767.7,2767.6,0.73]
[1749644871749,0.54,2767.9,2767.7,0.55]
[1749644871957,0.5,2767.7,2767.6,0.18]
[1749644872157,0.54,2767.9,2767.8,0.18]
[1749644872458,0.54,2767.9,2767.7,0.55]
[1749644872859,0.54,2767.9,2767.8,0.18]
[1749644873770,0.04,2767.9,2767.8,0.73]
[1749644874069,0.04,2767.9,2767.8,1.14175409]
[1749644874271,0.04,2767.9,2767.8,13.78742931]
[1749644874638,0.54,2767.9,2767.8,13.78742931]
[1749644875072,0.54,2767.9,2767.8,10.18]
[1749644876161,1.14,2767.9,2767.8,10.18]
[1749644877558,0.54,2767.9,2767.8,10.18]
[1749644879292,1.3648,2767.9,2767.8,10.18]
[1749644879589,0.54,2767.9,2767.8,10.18]
[1749644879794,0.54,2767.9,2767.8,11.38104487]
[1749644879990,0.04,2767.9,2767.8,11.93104487]
[1749644880500,0.04,2767.9,2767.8,12.17784487]
[1749644880853,0.04,2767.9,2767.8,12.20683037]
[1749644881669,0.04,2767.9,2767.8,11.41003037]
[1749644882119,0.54,2767.9,2767.8,10.2089855]
[1749644882834,6.85335499,2767.9,2767.8,0.2089855]
[1749644883035,8.80635499,2767.9,2767.8,0.2089855]
[1749644883340,2.493,2767.9,2767.8,0.2089855]
[1749644883848,0.54,2767.9,2767.8,0.2089855]
[1749644884204,0.04,2767.9,2767.8,21.42491857]
[1749644884432,0.04,2767.9,2767.8,11.77988405]
[1749644884589,0.04,2767.9,2767.8,1.22988405]
[1749644884790,0.8027,2767.9,2767.8,0.2089855]
[1749644886731,0.04,2767.9,2767.8,0.2089855]
[1749644887905,0.64,2767.9,2767.8,0.2089855]
[1749644888312,0.64,2767.9,2767.8,0.0289855]
[1749644890443,4.25284728,2767.9,2767.8,0.0289855]
[1749644890748,0.64,2767.9,2767.8,0.0289855]
[1749644891221,10.28503452,2767.9,2767.8,0.0289855]
[1749644891743,13.8978818,2767.9,2767.8,0.0289855]
[1749644891898,10.28503452,2767.9,2767.8,0.0289855]
[1749644892099,0.64,2767.9,2767.8,0.0289855]
[1749644893143,10.28503452,2767.9,2767.8,0.0289855]
[1749644893369,0.64,2767.9,2767.8,0.0289855]
[1749644893745,8.43981705,2767.9,2767.8,0.0289855]
[1749644894322,0.5,2767.0,2766.4,3.69]